[Event "Late-Titled-Tuesday-Blitz-July-09-2024"]
[Site "Chess.com"]
[Date "2024.07.09"]
[Round "3"]
[White "SRob2003"]
[Black "OparinGrigoriy"]
[Result "0-1"]
[WhiteElo "2707"]
[BlackElo "3008"]
[TimeControl "180+1"]
[EndTime "14:27:50 PDT"]
[Termination "OparinGrigoriy won by checkmate"]

1. c4 {[%clk 0:03:00.9]} 1... e6 {[%clk 0:02:59.9]} 2. g3 {[%clk 0:03:00.8]}
2... d5 {[%clk 0:03:00.3]} 3. Bg2 {[%clk 0:03:01.4]} 3... dxc4 {[%clk
0:03:00.9]} 4. Qa4+ {[%clk 0:03:01.3]} 4... c6 {[%clk 0:03:01.1]} 5. Qxc4 {[%clk
0:03:01.6]} 5... b5 {[%clk 0:03:01.9]} 6. Qb3 {[%clk 0:02:58.8]} 6... Bb7 {[%clk
0:03:01.9]} 7. Nh3 {[%clk 0:02:57.6]} 7... Nd7 {[%clk 0:03:01.6]} 8. O-O {[%clk
0:02:57]} 8... a6 {[%clk 0:03:00.2]} 9. d4 {[%clk 0:02:55.8]} 9... Ngf6 {[%clk
0:02:57.5]} 10. a4 {[%clk 0:02:55.2]} 10... Be7 {[%clk 0:02:54.4]} 11. Nf4
{[%clk 0:02:49.2]} 11... Nd5 {[%clk 0:02:51]} 12. axb5 {[%clk 0:02:17]} 12...
axb5 {[%clk 0:02:48.7]} 13. Rxa8 {[%clk 0:02:17.9]} 13... Qxa8 {[%clk 0:02:49]}
14. Nxd5 {[%clk 0:02:16.9]} 14... exd5 {[%clk 0:02:49.9]} 15. e4 {[%clk
0:02:14.9]} 15... dxe4 {[%clk 0:02:46.6]} 16. Bxe4 {[%clk 0:02:15.8]} 16... O-O
{[%clk 0:02:46.9]} 17. Nc3 {[%clk 0:02:10.7]} 17... Nf6 {[%clk 0:02:46.9]} 18.
Bg2 {[%clk 0:02:10.6]} 18... Rd8 {[%clk 0:02:47.3]} 19. Re1 {[%clk 0:02:02.4]}
19... Re8 {[%clk 0:02:45.4]} 20. Bf4 {[%clk 0:01:33.7]} 20... h6 {[%clk
0:02:42.9]} 21. h3 {[%clk 0:01:32.7]} 21... Bf8 {[%clk 0:02:36.3]} 22. Rxe8
{[%clk 0:01:32.2]} 22... Qxe8 {[%clk 0:02:36.4]} 23. Be3 {[%clk 0:00:55.6]}
23... Qd7 {[%clk 0:02:34.2]} 24. Kh2 {[%clk 0:00:49.1]} 24... b4 {[%clk
0:02:26.1]} 25. Ne4 {[%clk 0:00:46.7]} 25... Nd5 {[%clk 0:02:26.5]} 26. Nc5
{[%clk 0:00:45.4]} 26... Bxc5 {[%clk 0:02:26.6]} 27. dxc5 {[%clk 0:00:46.3]}
27... Nxe3 {[%clk 0:02:25.5]} 28. Qxe3 {[%clk 0:00:47.2]} 28... Ba6 {[%clk
0:02:19.4]} 29. Qe4 {[%clk 0:00:46.3]} 29... Bb5 {[%clk 0:02:09.9]} 30. Qxb4
{[%clk 0:00:45.3]} 30... Qf5 {[%clk 0:02:07.3]} 31. Qd4 {[%clk 0:00:43.7]} 31...
g5 {[%clk 0:02:04.9]} 32. b4 {[%clk 0:00:41.4]} 32... h5 {[%clk 0:01:58]} 33. h4
{[%clk 0:00:39.4]} 33... gxh4 {[%clk 0:01:57.8]} 34. gxh4 {[%clk 0:00:34.3]}
34... f6 {[%clk 0:01:52.3]} 35. Kg3 {[%clk 0:00:33.8]} 35... Kg7 {[%clk
0:01:52]} 36. Bh3 {[%clk 0:00:28.5]} 36... Qg6+ {[%clk 0:01:51.2]} 37. Kh2
{[%clk 0:00:28.9]} 37... Qc2 {[%clk 0:01:47]} 38. Qd7+ {[%clk 0:00:28.2]} 38...
Kh6 {[%clk 0:01:45.6]} 39. Qd4 {[%clk 0:00:27.3]} 39... Kg7 {[%clk 0:01:44.6]}
40. Be6 {[%clk 0:00:25.1]} 40... Qe2 {[%clk 0:01:34.9]} 41. Bf5 {[%clk
0:00:23.6]} 41... Bc4 {[%clk 0:01:25.3]} 42. Qd7+ {[%clk 0:00:23.2]} 42... Bf7
{[%clk 0:01:23.8]} 43. Qxc6 {[%clk 0:00:20.7]} 43... Qe5+ {[%clk 0:01:16.9]} 44.
Kg1 {[%clk 0:00:21]} 44... Qxf5 {[%clk 0:01:17.1]} 45. b5 {[%clk 0:00:19.3]}
45... Bd5 {[%clk 0:01:17.1]} 46. Qc7+ {[%clk 0:00:19.5]} 46... Kh6 {[%clk
0:01:17.1]} 47. b6 {[%clk 0:00:03]} 47... Qf3 {[%clk 0:01:10.4]} 48. Qh2 {[%clk
0:00:02.3]} 48... Qd1# {[%clk 0:01:10.5]} 0-1

[Event "Late-Titled-Tuesday-Blitz-July-09-2024"]
[Site "Chess.com"]
[Date "2024.07.09"]
[Round "3"]
[White "Truequitos"]
[Black "NowInChess"]
[Result "1-0"]
[WhiteElo "2544"]
[BlackElo "2215"]
[TimeControl "180+1"]
[EndTime "14:27:52 PDT"]
[Termination "Truequitos won on time"]

1. Nf3 {[%clk 0:03:00]} 1... Nf6 {[%clk 0:02:59.6]} 2. g4 {[%clk 0:02:58.6]}
2... Nxg4 {[%clk 0:02:57.3]} 3. e4 {[%clk 0:02:58.9]} 3... d6 {[%clk 0:02:52.8]}
4. Bc4 {[%clk 0:02:57.5]} 4... Ne5 {[%clk 0:02:44.4]} 5. Nxe5 {[%clk 0:02:53]}
5... dxe5 {[%clk 0:02:45.3]} 6. Qh5 {[%clk 0:02:52.4]} 6... e6 {[%clk
0:02:36.4]} 7. Qxe5 {[%clk 0:02:50.8]} 7... Nc6 {[%clk 0:02:33.6]} 8. Qg3 {[%clk
0:02:47.8]} 8... Qf6 {[%clk 0:02:26.6]} 9. c3 {[%clk 0:02:37.9]} 9... Bd6 {[%clk
0:02:23.2]} 10. Qg2 {[%clk 0:02:30.7]} 10... Ne5 {[%clk 0:02:15.8]} 11. Be2
{[%clk 0:02:29.5]} 11... Qg6 {[%clk 0:01:58.9]} 12. O-O {[%clk 0:02:16.3]} 12...
Qxg2+ {[%clk 0:01:52.9]} 13. Kxg2 {[%clk 0:02:17.2]} 13... Ng6 {[%clk
0:01:53.6]} 14. d4 {[%clk 0:02:01.6]} 14... Nf4+ {[%clk 0:01:38.8]} 15. Kf3
{[%clk 0:02:00.6]} 15... Nxe2 {[%clk 0:01:36.9]} 16. Kxe2 {[%clk 0:02:01.5]}
16... e5 {[%clk 0:01:31.4]} 17. f4 {[%clk 0:01:59.2]} 17... f6 {[%clk
0:01:13.3]} 18. Na3 {[%clk 0:01:46.9]} 18... b6 {[%clk 0:00:54.2]} 19. Nc4
{[%clk 0:01:23.1]} 19... Ba6 {[%clk 0:00:53.6]} 20. b3 {[%clk 0:01:23.5]} 20...
O-O-O {[%clk 0:00:35.1]} 21. Rg1 {[%clk 0:01:18.8]} 21... g6 {[%clk 0:00:28.6]}
22. fxe5 {[%clk 0:01:13.7]} 22... fxe5 {[%clk 0:00:28.3]} 23. Ke3 {[%clk
0:01:14.2]} 23... exd4+ {[%clk 0:00:24.9]} 24. cxd4 {[%clk 0:01:13.7]} 24...
Bxc4 {[%clk 0:00:20.4]} 25. bxc4 {[%clk 0:01:13.2]} 25... Bxh2 {[%clk
0:00:20.4]} 26. Rh1 {[%clk 0:01:10.6]} 26... Bg3 {[%clk 0:00:17.4]} 27. e5
{[%clk 0:01:01.4]} 27... Rhe8 {[%clk 0:00:14.7]} 28. Rxh7 {[%clk 0:00:57.1]}
28... Rxd4 {[%clk 0:00:14.6]} 29. Kxd4 {[%clk 0:00:48.1]} 29... Bxe5+ {[%clk
0:00:14.4]} 30. Kd5 {[%clk 0:00:48.6]} 30... Bxa1 {[%clk 0:00:12.8]} 31. Bf4
{[%clk 0:00:49.3]} 31... Rd8+ {[%clk 0:00:08.7]} 32. Kc6 {[%clk 0:00:47.8]}
32... Re8 {[%clk 0:00:02.4]} 33. Rxc7+ {[%clk 0:00:41.6]} 33... Kd8 {[%clk
0:00:03.3]} 34. Bg5+ {[%clk 0:00:40.8]} 1-0

[Event "Late-Titled-Tuesday-Blitz-July-09-2024"]
[Site "Chess.com"]
[Date "2024.07.09"]
[Round "3"]
[White "bazar-wokzal"]
[Black "BaylavChess"]
[Result "1-0"]
[WhiteElo "2622"]
[BlackElo "2415"]
[TimeControl "180+1"]
[EndTime "14:27:53 PDT"]
[Termination "bazar-wokzal won by checkmate"]

1. e4 {[%clk 0:03:00.9]} 1... c5 {[%clk 0:03:00.1]} 2. c3 {[%clk 0:03:00.4]}
2... d5 {[%clk 0:02:55.3]} 3. exd5 {[%clk 0:03:00.3]} 3... Qxd5 {[%clk
0:02:56.2]} 4. d4 {[%clk 0:03:00.4]} 4... Nf6 {[%clk 0:02:56.9]} 5. Nf3 {[%clk
0:03:00.4]} 5... Bg4 {[%clk 0:02:57.4]} 6. dxc5 {[%clk 0:02:59.9]} 6... Qxd1+
{[%clk 0:02:52.7]} 7. Kxd1 {[%clk 0:02:59.6]} 7... e5 {[%clk 0:02:51.9]} 8. b4
{[%clk 0:02:59.3]} 8... e4 {[%clk 0:02:47.3]} 9. h3 {[%clk 0:02:59.6]} 9... exf3
{[%clk 0:02:36.2]} 10. hxg4 {[%clk 0:02:59.3]} 10... Nxg4 {[%clk 0:02:37.1]} 11.
Rh4 {[%clk 0:02:51.7]} 11... h5 {[%clk 0:02:17.6]} 12. gxf3 {[%clk 0:02:51]}
12... Be7 {[%clk 0:02:17.7]} 13. Rxg4 {[%clk 0:02:21.7]} 13... hxg4 {[%clk
0:02:17.8]} 14. fxg4 {[%clk 0:02:22.2]} 14... Nc6 {[%clk 0:02:10.4]} 15. Na3
{[%clk 0:02:15.6]} 15... O-O-O+ {[%clk 0:02:08.7]} 16. Ke2 {[%clk 0:02:15.3]}
16... Bf6 {[%clk 0:01:57.3]} 17. Nb5 {[%clk 0:02:05.4]} 17... Be5 {[%clk
0:01:21.5]} 18. f4 {[%clk 0:01:59.1]} 18... Rh2+ {[%clk 0:01:20.9]} 19. Kf3
{[%clk 0:01:58.2]} 19... a6 {[%clk 0:01:11.2]} 20. fxe5 {[%clk 0:01:54.3]} 20...
axb5 {[%clk 0:01:11.5]} 21. Bxb5 {[%clk 0:01:49.5]} 21... Nxe5+ {[%clk
0:01:11.5]} 22. Kg3 {[%clk 0:01:49.9]} 22... Rc2 {[%clk 0:01:07.4]} 23. Bf4
{[%clk 0:01:43]} 23... Rxc3+ {[%clk 0:01:07.5]} 24. Kg2 {[%clk 0:01:42]} 24...
Nxg4 {[%clk 0:00:59.6]} 25. Re1 {[%clk 0:01:35.2]} 25... Rd4 {[%clk 0:00:33.4]}
26. Re8+ {[%clk 0:01:30.4]} 26... Rd8 {[%clk 0:00:33.8]} 27. Re7 {[%clk
0:01:30.8]} 27... Rf8 {[%clk 0:00:23.7]} 28. Rc7+ {[%clk 0:01:27]} 28... Kd8
{[%clk 0:00:24.2]} 29. Rxb7 {[%clk 0:01:26.4]} 29... Ne3+ {[%clk 0:00:19.8]} 30.
Kf2 {[%clk 0:01:17.8]} 30... Nf5 {[%clk 0:00:17.6]} 31. Rb8+ {[%clk 0:01:07.3]}
31... Ke7 {[%clk 0:00:16.4]} 32. Bd6+ {[%clk 0:01:07.5]} 32... Nxd6 {[%clk
0:00:17.1]} 33. cxd6+ {[%clk 0:01:08]} 33... Kxd6 {[%clk 0:00:18]} 34. Rxf8
{[%clk 0:01:08.1]} 34... Rc2+ {[%clk 0:00:18.6]} 35. Ke3 {[%clk 0:01:08]} 35...
Rxa2 {[%clk 0:00:19.5]} 36. Rxf7 {[%clk 0:01:06.1]} 36... Rb2 {[%clk 0:00:17.9]}
37. Rf4 {[%clk 0:01:04.9]} 37... Rb3+ {[%clk 0:00:18.1]} 38. Kd2 {[%clk
0:01:04.4]} 38... g5 {[%clk 0:00:18.5]} 39. Rg4 {[%clk 0:01:04.4]} 39... Kc7
{[%clk 0:00:16.8]} 40. Kc2 {[%clk 0:01:02.7]} 40... Rf3 {[%clk 0:00:15.9]} 41.
Rxg5 {[%clk 0:01:02.9]} 41... Rf4 {[%clk 0:00:15.8]} 42. Kb3 {[%clk 0:01:02.4]}
42... Kb6 {[%clk 0:00:16.3]} 43. Bc4 {[%clk 0:01:00.7]} 43... Rf3+ {[%clk
0:00:16.4]} 44. Ka4 {[%clk 0:01:00.7]} 44... Rf2 {[%clk 0:00:17.1]} 45. Rg6+
{[%clk 0:01:01.1]} 45... Kb7 {[%clk 0:00:17]} 46. b5 {[%clk 0:01:00.8]} 46...
Rf4 {[%clk 0:00:16.3]} 47. Kb4 {[%clk 0:01:00.9]} 47... Rh4 {[%clk 0:00:16.4]}
48. Kc5 {[%clk 0:01:01.1]} 48... Rh5+ {[%clk 0:00:16.9]} 49. Bd5+ {[%clk
0:01:01.4]} 49... Kc7 {[%clk 0:00:17]} 50. b6+ {[%clk 0:01:01.3]} 50... Kb8
{[%clk 0:00:16.3]} 51. Rg8# {[%clk 0:01:01.1]} 1-0

[Event "Late-Titled-Tuesday-Blitz-July-09-2024"]
[Site "Chess.com"]
[Date "2024.07.09"]
[Round "3"]
[White "Andreikka"]
[Black "annasargsyan_m"]
[Result "1-0"]
[WhiteElo "3005"]
[BlackElo "2691"]
[TimeControl "180+1"]
[EndTime "14:27:55 PDT"]
[Termination "Andreikka won by resignation"]

1. Nf3 {[%clk 0:02:59.4]} 1... Nf6 {[%clk 0:02:59.3]} 2. b3 {[%clk 0:02:59.9]}
2... g6 {[%clk 0:02:59.5]} 3. Bb2 {[%clk 0:02:58.6]} 3... Bg7 {[%clk 0:03:00.1]}
4. c4 {[%clk 0:02:58.3]} 4... O-O {[%clk 0:02:57.6]} 5. g3 {[%clk 0:02:58.4]}
5... b6 {[%clk 0:02:54.2]} 6. Bg2 {[%clk 0:02:58.6]} 6... Bb7 {[%clk 0:02:54.9]}
7. O-O {[%clk 0:02:57.9]} 7... d5 {[%clk 0:02:55.5]} 8. cxd5 {[%clk 0:02:57.8]}
8... Bxd5 {[%clk 0:02:54.5]} 9. Nc3 {[%clk 0:02:56]} 9... Bb7 {[%clk 0:02:54.2]}
10. d4 {[%clk 0:02:54.9]} 10... Nbd7 {[%clk 0:02:54.7]} 11. Qc2 {[%clk
0:02:50.3]} 11... Rc8 {[%clk 0:02:51.4]} 12. Rad1 {[%clk 0:02:49.2]} 12... e6
{[%clk 0:02:50.2]} 13. e4 {[%clk 0:02:46.9]} 13... Re8 {[%clk 0:02:49.7]} 14.
Rfe1 {[%clk 0:02:38.4]} 14... Qe7 {[%clk 0:02:45.5]} 15. d5 {[%clk 0:02:24.2]}
15... exd5 {[%clk 0:02:44.2]} 16. e5 {[%clk 0:02:24.1]} 16... Ng4 {[%clk
0:02:03.5]} 17. Nxd5 {[%clk 0:02:21.8]} 17... Qc5 {[%clk 0:01:29.8]} 18. Qxc5
{[%clk 0:02:16.9]} 18... Nxc5 {[%clk 0:01:30.7]} 19. h3 {[%clk 0:02:11.6]} 19...
Nh6 {[%clk 0:01:21.6]} 20. g4 {[%clk 0:02:08.7]} 20... Ne6 {[%clk 0:01:14]} 21.
Bc1 {[%clk 0:02:06]} 21... Kh8 {[%clk 0:01:06.5]} 22. Nf6 {[%clk 0:02:05.5]}
22... Red8 {[%clk 0:01:02.3]} 23. Ng5 {[%clk 0:02:05.1]} 23... Bxg2 {[%clk
0:00:57.4]} 24. Kxg2 {[%clk 0:02:02.8]} 24... Rxd1 {[%clk 0:00:49.2]} 25. Rxd1
{[%clk 0:02:01.7]} 25... Rd8 {[%clk 0:00:49.9]} 26. Rxd8+ {[%clk 0:01:56.5]}
26... Nxd8 {[%clk 0:00:50.8]} 27. Kf3 {[%clk 0:01:55.3]} 27... Ng8 {[%clk
0:00:45.9]} 28. Bb2 {[%clk 0:01:53.9]} 28... h6 {[%clk 0:00:44.2]} 29. Nge4
{[%clk 0:01:50.6]} 29... Ne6 {[%clk 0:00:42.3]} 30. Ke3 {[%clk 0:01:50.8]} 30...
Ne7 {[%clk 0:00:42.1]} 31. f4 {[%clk 0:01:49.4]} 31... Bxf6 {[%clk 0:00:38.4]}
32. Nxf6 {[%clk 0:01:48.1]} 32... Kg7 {[%clk 0:00:38.8]} 33. Ba3 {[%clk
0:01:40.9]} 33... c5 {[%clk 0:00:35.9]} 34. Ke4 {[%clk 0:01:41.1]} 34... g5
{[%clk 0:00:35.9]} 35. Nh5+ {[%clk 0:01:37.7]} 35... Kf8 {[%clk 0:00:34.1]} 36.
f5 {[%clk 0:01:37.8]} 36... Nd4 {[%clk 0:00:34.5]} 37. Bb2 {[%clk 0:01:38.4]}
37... Ndc6 {[%clk 0:00:31.3]} 38. Bc3 {[%clk 0:01:36.1]} 38... b5 {[%clk
0:00:27.7]} 39. Nf6 {[%clk 0:01:36.3]} 39... b4 {[%clk 0:00:24.4]} 40. Be1
{[%clk 0:01:35.5]} 40... Nd4 {[%clk 0:00:17]} 41. Nd7+ {[%clk 0:01:35.1]} 41...
Ke8 {[%clk 0:00:17.8]} 42. Nxc5 {[%clk 0:01:35.6]} 42... Nc2 {[%clk 0:00:18.6]}
43. Bd2 {[%clk 0:01:35.9]} 43... Nc6 {[%clk 0:00:19.2]} 44. Kd5 {[%clk 0:01:35]}
44... Ne7+ {[%clk 0:00:18.4]} 45. Kc4 {[%clk 0:01:35.2]} 45... Nc6 {[%clk
0:00:18.3]} 46. Nd3 {[%clk 0:01:32.8]} 46... a5 {[%clk 0:00:15.5]} 47. Kc5
{[%clk 0:01:33]} 47... Kd7 {[%clk 0:00:15.5]} 48. Kb6 {[%clk 0:01:32.7]} 48...
N6d4 {[%clk 0:00:15.1]} 49. Kxa5 {[%clk 0:01:32]} 49... Nf3 {[%clk 0:00:15.3]}
50. Bxb4 {[%clk 0:01:30.3]} 50... Ng1 {[%clk 0:00:15.8]} 51. Nf2 {[%clk
0:01:23.7]} 51... Nd4 {[%clk 0:00:11.8]} 52. Kb6 {[%clk 0:01:21.1]} 52... Ndf3
{[%clk 0:00:09.9]} 53. Bc3 {[%clk 0:01:19.4]} 1-0

[Event "Late-Titled-Tuesday-Blitz-July-09-2024"]
[Site "Chess.com"]
[Date "2024.07.09"]
[Round "3"]
[White "katharinareinecke"]
[Black "GiorgianBarbosa"]
[Result "0-1"]
[WhiteElo "2096"]
[BlackElo "2519"]
[TimeControl "180+1"]
[EndTime "14:28:01 PDT"]
[Termination "GiorgianBarbosa won by resignation"]

1. d4 {[%clk 0:02:53.3]} 1... Nf6 {[%clk 0:02:59.4]} 2. Nf3 {[%clk 0:02:52.2]}
2... e6 {[%clk 0:03:00.3]} 3. g3 {[%clk 0:02:51.9]} 3... d5 {[%clk 0:02:59.9]}
4. Bg2 {[%clk 0:02:52.3]} 4... Be7 {[%clk 0:03:00.8]} 5. O-O {[%clk 0:02:52.8]}
5... O-O {[%clk 0:02:58.5]} 6. c4 {[%clk 0:02:52.5]} 6... a5 {[%clk 0:02:58.7]}
7. b3 {[%clk 0:02:51.3]} 7... c6 {[%clk 0:02:58.8]} 8. Bb2 {[%clk 0:02:50.8]}
8... b6 {[%clk 0:02:59.1]} 9. cxd5 {[%clk 0:02:48.5]} 9... cxd5 {[%clk 0:02:59]}
10. Nc3 {[%clk 0:02:46.1]} 10... Ba6 {[%clk 0:02:58.4]} 11. Re1 {[%clk 0:02:43]}
11... Nc6 {[%clk 0:02:50.9]} 12. Rc1 {[%clk 0:02:41.2]} 12... Rc8 {[%clk
0:02:46.9]} 13. e3 {[%clk 0:02:39.6]} 13... Nb4 {[%clk 0:02:44.4]} 14. Ne5
{[%clk 0:02:28]} 14... Nd7 {[%clk 0:02:39.2]} 15. a3 {[%clk 0:02:13.7]} 15...
Nxe5 {[%clk 0:02:32.9]} 16. axb4 {[%clk 0:02:12.9]} 16... Nd3 {[%clk 0:02:32.6]}
17. b5 {[%clk 0:01:55]} 17... Nxe1 {[%clk 0:02:08.4]} 18. Qxe1 {[%clk
0:01:50.7]} 18... Bb7 {[%clk 0:02:06.7]} 19. Na4 {[%clk 0:01:38.6]} 19... Bb4
{[%clk 0:02:01]} 20. Qd1 {[%clk 0:01:32.4]} 20... Qd6 {[%clk 0:01:59.2]} 21. Bf1
{[%clk 0:01:19.6]} 21... Rxc1 {[%clk 0:01:57.7]} 22. Qxc1 {[%clk 0:01:19]} 22...
Rc8 {[%clk 0:01:58.1]} 23. Qb1 {[%clk 0:01:16.4]} 23... g6 {[%clk 0:01:54.3]}
24. Qd3 {[%clk 0:01:09.5]} 24... h5 {[%clk 0:01:51.4]} 25. Bc3 {[%clk
0:01:09.4]} 25... Bxc3 {[%clk 0:01:49.6]} 26. Nxc3 {[%clk 0:01:10.3]} 26... Rc7
{[%clk 0:01:38.9]} 27. Ne2 {[%clk 0:01:07.5]} 27... Bc8 {[%clk 0:01:29]} 28. Nf4
{[%clk 0:01:05.8]} 28... Kg7 {[%clk 0:01:26]} 29. Be2 {[%clk 0:00:53.7]} 29...
Bd7 {[%clk 0:01:24.4]} 30. g4 {[%clk 0:00:49.8]} 30... hxg4 {[%clk 0:01:17.7]}
31. Bxg4 {[%clk 0:00:49.3]} 31... e5 {[%clk 0:01:16.4]} 32. dxe5 {[%clk
0:00:36.2]} 32... Qxe5 {[%clk 0:01:17.3]} 33. Bf3 {[%clk 0:00:29.3]} 33... Rc5
{[%clk 0:00:57.2]} 34. Nxd5 {[%clk 0:00:26.7]} 34... Bxb5 {[%clk 0:00:53.3]} 35.
Qd4 {[%clk 0:00:23.5]} 35... Rc1+ {[%clk 0:00:49.1]} 36. Kg2 {[%clk 0:00:23.2]}
36... Bf1+ {[%clk 0:00:48.4]} 37. Kg1 {[%clk 0:00:17.7]} 37... Qxd4 {[%clk
0:00:29.8]} 38. exd4 {[%clk 0:00:17.2]} 38... Bh3+ {[%clk 0:00:29]} 0-1

[Event "Late-Titled-Tuesday-Blitz-July-09-2024"]
[Site "Chess.com"]
[Date "2024.07.09"]
[Round "3"]
[White "solofon"]
[Black "PapaieDudu"]
[Result "1-0"]
[WhiteElo "2588"]
[BlackElo "2413"]
[TimeControl "180+1"]
[EndTime "14:28:08 PDT"]
[Termination "solofon won by resignation"]

1. e4 {[%clk 0:03:00.9]} 1... c5 {[%clk 0:02:55.8]} 2. Nc3 {[%clk 0:03:00.4]}
2... a6 {[%clk 0:02:54.8]} 3. g3 {[%clk 0:03:00.1]} 3... Nc6 {[%clk 0:02:54.5]}
4. Bg2 {[%clk 0:03:00]} 4... e6 {[%clk 0:02:54.1]} 5. d3 {[%clk 0:03:00]} 5...
d6 {[%clk 0:02:53.5]} 6. f4 {[%clk 0:02:59.2]} 6... Nf6 {[%clk 0:02:53.8]} 7.
Nf3 {[%clk 0:02:59.6]} 7... Be7 {[%clk 0:02:54.3]} 8. O-O {[%clk 0:02:59.6]}
8... O-O {[%clk 0:02:54.9]} 9. Kh1 {[%clk 0:02:59.7]} 9... b5 {[%clk 0:02:53.8]}
10. Qe2 {[%clk 0:02:56.8]} 10... Bb7 {[%clk 0:02:53.9]} 11. Be3 {[%clk 0:02:46]}
11... Rc8 {[%clk 0:02:45.4]} 12. e5 {[%clk 0:02:45.9]} 12... Nd5 {[%clk
0:02:43.9]} 13. Nxd5 {[%clk 0:02:44.7]} 13... exd5 {[%clk 0:02:44.3]} 14. c3
{[%clk 0:02:39.7]} 14... d4 {[%clk 0:02:25.6]} 15. cxd4 {[%clk 0:02:32.8]} 15...
cxd4 {[%clk 0:02:26]} 16. Nxd4 {[%clk 0:02:28.3]} 16... Nxd4 {[%clk 0:02:25.9]}
17. Bxd4 {[%clk 0:02:28.3]} 17... Bxg2+ {[%clk 0:02:24.9]} 18. Kxg2 {[%clk
0:02:26]} 18... dxe5 {[%clk 0:02:25.4]} 19. Bxe5 {[%clk 0:02:26.1]} 19... Qd5+
{[%clk 0:02:18.9]} 20. Kh3 {[%clk 0:02:18.2]} 20... Qe6+ {[%clk 0:02:05]} 21.
Qg4 {[%clk 0:02:15.3]} 21... Qxg4+ {[%clk 0:01:48.6]} 22. Kxg4 {[%clk
0:02:15.2]} 22... Rfd8 {[%clk 0:01:48.3]} 23. Rad1 {[%clk 0:02:13.3]} 23... Rc2
{[%clk 0:01:46.3]} 24. a3 {[%clk 0:01:56.4]} 24... Rxh2 {[%clk 0:01:36.4]} 25.
Bc3 {[%clk 0:01:27.6]} 25... g6 {[%clk 0:01:13.8]} 26. d4 {[%clk 0:01:22.5]}
26... Bf6 {[%clk 0:01:01.5]} 27. Kf3 {[%clk 0:01:17.6]} 27... h5 {[%clk
0:00:54]} 28. Rf2 {[%clk 0:01:17.6]} 28... Rxf2+ {[%clk 0:00:52.7]} 29. Kxf2
{[%clk 0:01:17.7]} 29... Kg7 {[%clk 0:00:51.2]} 30. Kf3 {[%clk 0:01:17.8]} 30...
g5 {[%clk 0:00:46.8]} 31. fxg5 {[%clk 0:01:15.6]} 31... Bxg5 {[%clk 0:00:47.2]}
32. d5+ {[%clk 0:01:16]} 32... Bf6 {[%clk 0:00:47.5]} 33. Bxf6+ {[%clk
0:01:13.4]} 33... Kxf6 {[%clk 0:00:47.8]} 34. Ke4 {[%clk 0:01:14.1]} 34... Kg5
{[%clk 0:00:41.3]} 35. Rf1 {[%clk 0:01:11]} 35... Kg4 {[%clk 0:00:32.4]} 36.
Rxf7 {[%clk 0:01:10.2]} 36... Kxg3 {[%clk 0:00:33]} 37. Ke5 {[%clk 0:01:10.6]}
37... h4 {[%clk 0:00:33.1]} 38. Rg7+ {[%clk 0:01:09.7]} 38... Kf3 {[%clk
0:00:32.4]} 39. d6 {[%clk 0:01:09.6]} 39... h3 {[%clk 0:00:32.3]} 40. Rh7 {[%clk
0:01:09.8]} 40... Kg2 {[%clk 0:00:32.1]} 41. Ke6 {[%clk 0:01:09.7]} 41... h2
{[%clk 0:00:31.6]} 42. Ke7 {[%clk 0:01:10.1]} 42... Ra8 {[%clk 0:00:25.6]} 43.
d7 {[%clk 0:01:09.9]} 43... h1=Q {[%clk 0:00:24.3]} 44. Rxh1 {[%clk 0:01:09.6]}
44... Kxh1 {[%clk 0:00:24.8]} 45. d8=Q {[%clk 0:01:09.3]} 45... Rxd8 {[%clk
0:00:25.4]} 46. Kxd8 {[%clk 0:01:09.7]} 46... Kg2 {[%clk 0:00:21.4]} 47. Kc7
{[%clk 0:01:09.5]} 47... Kf3 {[%clk 0:00:21.6]} 48. Kb6 {[%clk 0:01:09.7]} 48...
Ke4 {[%clk 0:00:20.2]} 49. Kxa6 {[%clk 0:01:09.7]} 49... b4 {[%clk 0:00:19.5]}
50. axb4 {[%clk 0:01:09.6]} 50... Kd5 {[%clk 0:00:20.1]} 51. b5 {[%clk
0:01:09.7]} 51... Kd6 {[%clk 0:00:21]} 52. Ka7 {[%clk 0:01:09.5]} 52... Kc7
{[%clk 0:00:20.8]} 53. b6+ {[%clk 0:01:09.8]} 53... Kc6 {[%clk 0:00:21.2]} 54.
b7 {[%clk 0:01:10.1]} 54... Kb5 {[%clk 0:00:22.1]} 55. b8=Q+ {[%clk 0:01:09.8]}
55... Ka5 {[%clk 0:00:23]} 56. b4+ {[%clk 0:01:03.8]} 56... Ka4 {[%clk
0:00:23.9]} 57. b5 {[%clk 0:01:03.9]} 57... Ka5 {[%clk 0:00:24.3]} 58. Qb6+
{[%clk 0:01:03.5]} 58... Ka4 {[%clk 0:00:24.7]} 1-0